fUSD/lending_fUSD_20240823
["ID","MTS","AMOUNT","RATE_DAILY","PERIOD"]
[335627875,1724392281341,-500.0,0.00010999,2]
[335627876,1724392281351,-588.75,0.00010999,2]
[335627877,1724392281360,-500.0,0.00010999,2]
[335627878,1724392281369,-588.75,0.00010999,2]
[335627879,1724392281378,-500.0,0.00010999,2]
[335627880,1724392281387,-588.75,0.00010999,2]
[335627881,1724392281396,-500.0,0.00010999,2]
[335627882,1724392281405,-588.75,0.00010999,2]
[335627883,1724392281414,-500.0,0.00010999,2]
[335627884,1724392281423,-588.75,0.00010999,2]
[335627885,1724392281432,-500.0,0.00010999,2]
[335627886,1724392281442,-588.91004501,0.00010999,2]
[335627887,1724392281452,-500.0,0.00010999,2]
[335627888,1724392281460,-500.0,0.00010999,2]
[335627889,1724392281469,-500.0,0.00010999,2]
[335627890,1724392281478,-500.0,0.00010999,2]
[335627891,1724392281487,-500.0,0.00010999,2]
[335627892,1724392281495,-500.0,0.00010999,2]
[335627893,1724392281504,-500.0,0.00010999,2]
[335627894,1724392281513,-500.0,0.00010999,2]
[335627895,1724392281522,-568.24260477,0.00010999,2]
[335627896,1724392281531,-500.0,0.00010999,2]
[335627897,1724392281541,-500.0,0.00010999,2]
[335627898,1724392281550,-500.0,0.00010999,2]
[335627899,1724392281559,-500.0,0.00010999,2]
[335627900,1724392281567,-500.0,0.00010999,2]
[335627901,1724392281576,-500.0,0.00010999,2]
[335627902,1724392281586,-501.08055522,0.00010999,2]
[335627903,1724392281595,-2864.8,0.00010999,2]
[335627904,1724392281605,-2864.8,0.00010999,2]
[335627905,1724392281614,-2864.8,0.00010999,2]
[335627906,1724392281623,-2864.8,0.00010999,2]
[335627907,1724392281632,-2864.8,0.00010999,2]
[335627908,1724392281641,-500.0,0.00010999,2]
[335627909,1724392281650,-500.0,0.00010999,2]
[335627910,1724392281659,-2864.8,0.00010999,2]
[335627911,1724392281669,-500.0,0.00010999,2]
[335627912,1724392281679,-2864.8,0.00010999,2]
[335627913,1724392281689,-500.0,0.00010999,2]
[335627914,1724392281698,-2864.8,0.00010999,2]
[335627915,1724392281708,-495.00220722,0.00010999,2]
[335627916,1724392281718,-2864.8,0.00010999,2]
[335627917,1724392281728,-500.0,0.00010999,2]
[335627918,1724392281739,-2864.8,0.00010999,2]
[335627919,1724392281748,-500.0,0.00010999,2]
[335627920,1724392281758,-2864.8,0.00010999,2]
[335627921,1724392281767,-2864.8,0.00010999,2]
[335627922,1724392281777,-2864.8,0.00010999,2]
[335627923,1724392281786,-500.0,0.00010999,2]
[335627924,1724392281795,-500.0,0.00010999,2]
[335627925,1724392281804,-2864.8,0.00010999,2]
[335627926,1724392281813,-500.0,0.00010999,2]
[335627927,1724392281822,-500.0,0.00010999,2]
[335627928,1724392281832,-2864.8,0.00010999,2]
[335627929,1724392281841,-500.0,0.00010999,2]
[335627930,1724392281851,-2864.8,0.00010999,2]
[335627931,1724392281860,-261.77589137,0.00010999,2]
[335627932,1724392281869,-516.70198013,0.00010999,2]
[335627933,1724392281879,-2864.91641327,0.00010999,2]
[335627934,1724392281889,-723.98,0.00010999,2]
[335627935,1724392281898,-723.98,0.00010999,2]
[335627936,1724392281909,-723.98,0.00010999,2]
[335627937,1724392281921,-723.98,0.00010999,2]
[335627938,1724392281930,-704.82,0.00010999,2]
[335627939,1724392281945,-723.98,0.00010999,2]
[335627940,1724392281955,-704.82,0.00010999,2]
[335627941,1724392281964,-723.98,0.00010999,2]
[335627942,1724392281974,-704.82,0.00010999,2]
[335627943,1724392281984,-723.98,0.00010999,2]
[335627944,1724392281993,-704.82,0.00010999,2]
[335627945,1724392282003,-723.98,0.00010999,2]
[335627946,1724392282013,-704.82,0.00010999,2]
[335627947,1724392282022,-723.98,0.00010999,2]
[335627948,1724392282031,-540.19,0.00010999,2]
[335627949,1724392282041,-704.82,0.00010999,2]
[335627950,1724392282050,-723.98,0.00010999,2]
[335627951,1724392282060,-540.19,0.00010999,2]
[335627952,1724392282070,-704.82,0.00010999,2]
[335627953,1724392282086,-723.98,0.00010999,2]
[335627954,1724392282096,-540.19,0.00010999,2]
[335627955,1724392282105,-704.82,0.00010999,2]
[335627956,1724392282115,-724.21385174,0.00010999,2]
[335627957,1724392282124,-704.82,0.00010999,2]
[335627958,1724392282134,-540.19,0.00010999,2]
[335627959,1724392282144,-704.82,0.00010999,2]
[335627960,1724392282155,-540.19,0.00010999,2]
[335627961,1724392282164,-540.19,0.00010999,2]
[335627962,1724392282174,-530.87,0.00010999,2]
[335627963,1724392282188,-500.0,0.00010999,2]
[335627964,1724392282198,-540.19,0.00010999,2]
[335627965,1724392282207,-530.87,0.00010999,2]
[335627966,1724392282216,-500.0,0.00010999,2]
[335627967,1724392282226,-540.19,0.00010999,2]
[335627968,1724392282236,-530.87,0.00010999,2]
[335627969,1724392282246,-500.0,0.00010999,2]
[335627970,1724392282255,-540.19,0.00010999,2]
[335627971,1724392282265,-500.0,0.00010999,2]
[335627972,1724392282275,-540.19,0.00010999,2]
[335627973,1724392282284,-530.87,0.00010999,2]
[335627974,1724392282294,-500.0,0.00010999,2]
[335627975,1724392282304,-540.19,0.00010999,2]
[335627976,1724392282313,-530.87,0.00010999,2]
[335627977,1724392282323,-601.49666603,0.00010999,2]
[335627978,1724392282332,-540.19,0.00010999,2]
[335627979,1724392282342,-530.87,0.00010999,2]
[335627980,1724392282351,-540.19,0.00010999,2]
[335627981,1724392282361,-530.87,0.00010999,2]
[335627982,1724392282371,-540.19,0.00010999,2]
[335627983,1724392282380,-530.87,0.00010999,2]
[335627984,1724392282389,-540.19,0.00010999,2]
[335627985,1724392282399,-3318.9,0.00010999,2]
[335627986,1724392282409,-530.87,0.00010999,2]
[335627987,1724392282419,-540.4260342,0.00010999,2]
[335627988,1724392282429,-3318.9,0.00010999,2]
[335627989,1724392282440,-530.87,0.00010999,2]
[335627990,1724392282450,-530.87,0.00010999,2]
[335627991,1724392282459,-3318.9,0.00010999,2]
[335627992,1724392282469,-704.82,0.00010999,2]
[335627993,1724392282478,-530.87,0.00010999,2]
[335627994,1724392282488,-3318.9,0.00010999,2]
[335627995,1724392282497,-704.98,0.00010999,2]
[335627996,1724392282507,-151.0,0.00010999,2]
[335627997,1724392282517,-530.87,0.00010999,2]
[335627998,1724392282526,-3318.9,0.00010999,2]
[335627999,1724392282535,-151.0,0.00010999,2]
[335628000,1724392282545,-530.87,0.00010999,2]
[335628001,1724392282555,-3318.9,0.00010999,2]
[335628002,1724392282565,-151.0,0.00010999,2]
[335628003,1724392282575,-530.87,0.00010999,2]
[335628004,1724392282584,-3318.9,0.00010999,2]
[335628005,1724392282595,-151.0,0.00010999,2]
[335628006,1724392282607,-151.0,0.00010999,2]
[335628007,1724392282618,-530.87,0.00010999,2]
[335628008,1724392282629,-3318.9,0.00010999,2]
[335628009,1724392282639,-644.84,0.00010999,2]
[335628010,1724392282649,-151.0,0.00010999,2]
[335628011,1724392282660,-644.84,0.00010999,2]
[335628012,1724392282670,-3318.9,0.00010999,2]
[335628013,1724392282681,-1325.53,0.00010999,2]
[335628014,1724392282691,-644.84,0.00010999,2]
[335628015,1724392282700,-3318.9,0.00010999,2]
[335628016,1724392282710,-644.84,0.00010999,2]
[335628017,1724392282720,-1325.53,0.00010999,2]
[335628018,1724392282729,-644.84,0.00010999,2]
[335628019,1724392282739,-1325.53,0.00010999,2]
[335628020,1724392282751,-644.84,0.00010999,2]
[335628021,1724392282760,-3318.9,0.00010999,2]
[335628022,1724392282770,-1325.53,0.00010999,2]
[335628023,1724392282780,-644.84,0.00010999,2]
[335628024,1724392282790,-3318.9,0.00010999,2]
[335628025,1724392282799,-1325.53,0.00010999,2]
[335628026,1724392282809,-644.84,0.00010999,2]
[335628027,1724392282819,-3318.9,0.00010999,2]
[335628028,1724392282828,-1325.53,0.00010999,2]
[335628029,1724392282838,-644.84,0.00010999,2]
[335628030,1724392282847,-3318.9,0.00010999,2]
[335628031,1724392282857,-1325.53,0.00010999,2]
[335628032,1724392282868,-644.84,0.00010999,2]
[335628033,1724392282877,-1325.53,0.00010999,2]
[335628034,1724392282887,-3318.9,0.00010999,2]
[335628035,1724392282897,-151.0,0.00010999,2]
[335628036,1724392282906,-644.84,0.00010999,2]
[335628037,1724392282916,-1325.53,0.00010999,2]
[335628038,1724392282926,-3318.9,0.00010999,2]
[335628039,1724392282936,-644.98983638,0.00010999,2]
[335628040,1724392282946,-185.447441,0.00010999,2]
[335628041,1724392282956,-1325.53,0.00010999,2]
[335628042,1724392282965,-3319.03917533,0.00010999,2]
[335628043,1724392282975,-1325.53,0.00010999,2]
[335628044,1724392282984,-1325.75,0.00010999,2]
[335628045,1724392282994,-896.17,0.00010999,2]
[335628046,1724392283004,-896.17,0.00010999,2]
[335628047,1724392283014,-500.0,0.00010999,2]
[335628048,1724392283023,-896.17,0.00010999,2]
[335628049,1724392283033,-500.0,0.00010999,2]
[335628050,1724392283042,-896.17,0.00010999,2]
[335628051,1724392283052,-500.0,0.00010999,2]
[335628052,1724392283061,-896.17,0.00010999,2]
[335628053,1724392283072,-500.0,0.00010999,2]
[335628054,1724392283084,-896.17,0.00010999,2]
[335628055,1724392283093,-500.0,0.00010999,2]
[335628056,1724392283103,-500.0,0.00010999,2]
[335628057,1724392283112,-896.17,0.00010999,2]
[335628058,1724392283122,-500.0,0.00010999,2]
[335628059,1724392283132,-500.0,0.00010999,2]
[335628060,1724392283141,-896.17,0.00010999,2]
[335628061,1724392283153,-500.0,0.00010999,2]
[335628062,1724392283162,-500.0,0.00010999,2]
[335628063,1724392283172,-896.17,0.00010999,2]
[335628064,1724392283182,-500.0,0.00010999,2]
[335628065,1724392283192,-896.17,0.00010999,2]
[335628066,1724392283202,-500.0,0.00010999,2]
[335628067,1724392283211,-500.0,0.00010999,2]
[335628068,1724392283221,-500.0,0.00010999,2]
[335628069,1724392283230,-896.17,0.00010999,2]
[335628070,1724392283239,-500.0,0.00010999,2]
[335628071,1724392283248,-500.0,0.00010999,2]
[335628072,1724392283258,-500.0,0.00010999,2]
[335628073,1724392283268,-896.2054785,0.00010999,2]
[335628074,1724392283278,-516.89923021,0.00010999,2]
[335628075,1724392283288,-500.0,0.00010999,2]
[335628076,1724392283298,-500.0,0.00010999,2]
[335628077,1724392283309,-500.0,0.00010999,2]
[335628078,1724392283319,-502.35560393,0.00010999,2]
[335628079,1724392283329,-500.0,0.00010999,2]
[335628080,1724392283338,-500.0,0.00010999,2]
[335628081,1724392283348,-500.0,0.00010999,2]
[335628082,1724392283358,-500.0,0.00010999,2]
[335628083,1724392283368,-500.0,0.00010999,2]
[335628084,1724392283378,-500.0,0.00010999,2]
[335628085,1724392283387,-500.0,0.00010999,2]
[335628086,1724392283396,-500.0,0.00010999,2]
[335628087,1724392283406,-500.0,0.00010999,2]
[335628088,1724392283415,-500.0,0.00010999,2]
[335628089,1724392283426,-692.31,0.00010999,2]
[335628090,1724392283436,-692.31,0.00010999,2]
[335628091,1724392283446,-500.0,0.00010999,2]
[335628092,1724392283455,-500.0,0.00010999,2]
[335628093,1724392283465,-692.31,0.00010999,2]
[335628094,1724392283475,-500.94843955,0.00010999,2]
[335628095,1724392283484,-500.0,0.00010999,2]
[335628096,1724392283494,-692.31,0.00010999,2]
[335628097,1724392283504,-500.0,0.00010999,2]
[335628098,1724392283514,-692.31,0.00010999,2]
[335628099,1724392283523,-500.0,0.00010999,2]
[335628100,1724392283533,-692.31,0.00010999,2]
[335628101,1724392283542,-201.18818959,0.00010999,2]
[335628102,1724392283552,-692.31,0.00010999,2]
[335628103,1724392283561,-692.31,0.00010999,2]
[335628104,1724392283570,-692.31,0.00010999,2]
[335628105,1724392283579,-692.31,0.00010999,2]
[335628106,1724392283589,-692.31,0.00010999,2]
[335628107,1724392283598,-500.0,0.00010999,2]
[335628108,1724392283608,-692.33303362,0.00010999,2]
[335628109,1724392283617,-506.00006581,0.00010999,2]
[335628110,1724392283627,-500.0,0.00010999,2]
[335628111,1724392283636,-500.0,0.00010999,2]
[335628112,1724392283645,-500.0,0.00010999,2]
[335628113,1724392283654,-500.0,0.00010999,2]
[335628114,1724392283664,-500.0,0.00010999,2]
[335628115,1724392283674,-500.0,0.00010999,2]
[335628116,1724392283684,-500.0,0.00010999,2]
[335628117,1724392283694,-500.0,0.00010999,2]
[335628118,1724392283704,-500.0,0.00010999,2]
[335628119,1724392283713,-2050.17,0.00010999,2]
[335628120,1724392283723,-500.0,0.00010999,2]
[335628121,1724392283732,-500.0,0.00010999,2]
[335628122,1724392283742,-2050.17,0.00010999,2]
[335628123,1724392283751,-500.0,0.00010999,2]
[335628124,1724392283761,-2050.17,0.00010999,2]
[335628125,1724392283771,-500.0,0.00010999,2]
[335628126,1724392283780,-2050.17,0.00010999,2]
[335628127,1724392283789,-500.0,0.00010999,2]
[335628128,1724392283799,-2050.17,0.00010999,2]
[335628129,1724392283808,-500.0,0.00010999,2]
[335628130,1724392283817,-2050.17,0.00010999,2]
[335628131,1724392283827,-298.56935747,0.00010999,2]
[335628132,1724392283837,-2050.17,0.00010999,2]
[335628133,1724392283846,-500.0,0.00010999,2]
[335628134,1724392283856,-2050.17,0.00010999,2]
[335628135,1724392283866,-500.0,0.00010999,2]
[335628136,1724392283876,-373.53252612,0.00010999,2]
[335628137,1724392283886,-2050.17,0.00010999,2]
[335628138,1724392283896,-2050.17,0.00010999,2]
[335628139,1724392283906,-151.0,0.00010999,2]
[335628140,1724392283915,-2050.17,0.00010999,2]
[335628141,1724392283925,-500.0,0.00010999,2]
[335628142,1724392283937,-674.99617632,0.00010999,2]
[335628143,1724392283967,-487.94323696,0.00010999,2]
[335628144,1724392283980,-319.0,0.00010999,2]
[335628145,1724392439135,1000.0,0.00027,120]
[335628146,1724392499064,168.93,8.479e-05,2]
[335628155,1724393019704,160.48,8.403e-05,2]
[335628156,1724393118640,150.0,8.319e-05,2]
[335628157,1724393127859,150.0,8.319e-05,2]
[335628158,1724393137951,152.27895,8.319e-05,2]
[335628165,1724393165088,9253.7,9.9e-05,2]
[335628166,1724393169042,927.04,9.9e-05,2]
[335628167,1724393187301,200.0,9.875e-05,2]
[335628168,1724393223568,15490.03475058,0.00010009,2]
[335628169,1724393232910,150.0,9.888e-05,2]
[335628170,1724393235125,1140.27190788,0.00010009,2]
[335628198,1724393239950,949.88761953,0.00010009,2]
[335628211,1724393249753,1276.46550139,0.00010009,2]
[335628213,1724393250134,1030.71887721,0.00010009,2]
[335628214,1724393250796,155.0,0.00010009,2]
[335628215,1724393252335,1291.93,9.793e-05,2]
[335628216,1724393254143,164.57212012,0.00010009,2]
[335628217,1724393254809,628.95048865,0.00010009,2]
[335628218,1724393254849,600.79792946,0.00010009,2]
[335628219,1724393257177,2540.88,9.798e-05,2]
[335628220,1724393257205,593.57957191,9.926e-05,2]
[335628221,1724393261162,203.42899612,0.00010009,2]
[335628222,1724393261778,892.62032859,0.00010009,2]
[335628223,1724393262020,264.45482161,0.00010009,2]
[335628224,1724393262728,1741.37556008,0.00010009,2]
[335628225,1724393263589,155.0,0.00010009,2]
[335628226,1724393263652,319.38158331,0.00010009,2]
[335628227,1724393264133,439.86489523,0.00010009,2]
[335628228,1724393266657,180.94582545,0.00010009,2]
[335628229,1724393267505,3879.15513227,0.00010009,2]
[335628230,1724393271242,432.5166998,0.00010009,2]
[335628231,1724393278205,155.0,0.00010009,2]
[335628232,1724393280313,11983.64872997,0.00010009,2]
[335628233,1724393280933,197.23721453,0.00010009,2]
[335628234,1724393282785,219.09322349,0.00010009,2]
[335628235,1724393282970,662.68,9.831e-05,2]
[335628236,1724393288004,180.53167842,0.00010009,2]
[335628237,1724393288054,193.33944114,0.00010009,2]
[335628238,1724393288763,5409.2072176,0.00010009,2]
[335628239,1724393289765,380.72044543,0.00010009,2]
[335628240,1724393293323,160.27820876,0.00010009,2]
[335628241,1724393298765,155.68651856,0.00010009,2]
[335628247,1724393301528,236.36319912,0.00010009,2]
[335628248,1724393302616,1248.0735285,0.00010009,2]
[335628249,1724393307992,159.62357463,0.00010009,2]
[335628250,1724393308315,1257.5209126,0.00010009,2]
[335628251,1724393311700,749.44,9.903e-05,2]
[335628252,1724393312650,2257.78198603,0.00010009,2]
[335628253,1724393316266,528.96350263,0.00010009,2]
[335628254,1724393322906,162.41769388,0.00010009,2]
[335628255,1724393324741,270.60181535,0.00010009,2]
[335628257,1724393327654,347.92812216,0.00010009,2]
[335628258,1724393331764,167.26528667,0.00010009,2]
[335628259,1724393334810,1500.0,0.00010009,2]
[335628260,1724393359353,196.65,9.947e-05,2]
[335628261,1724393360791,155.374249,0.00010009,2]
[335628262,1724393363395,1327.23,9.887e-05,2]
[335628263,1724393370533,341.25138439,0.00010009,4]
[335628264,1724393378225,156.32,9.93e-05,2]
[335628265,1724393386736,1912.37,9.924e-05,2]
[335628280,1724393432148,-1075.43,0.00010064,2]
[335628284,1724393432168,-1205.83906467,0.00010064,2]
[335628285,1724393432197,-399.12662878,0.00010064,2]
[335628286,1724393432208,-4789.58000655,0.00010064,2]
[335628287,1724393432218,-300.0,0.00010163,2]
[335628288,1724393432227,-500.0,0.00010164,2]
[335628289,1724393432237,-502.27319543,0.00010164,2]
[335628290,1724393432247,-211.69184993,0.00010164,2]
[335628291,1724393432256,-502.69981957,0.00010164,2]
[335628292,1724393432266,-500.0,0.00010164,2]
[335628293,1724393432275,-1706.88138312,0.00010164,2]
[335628294,1724393432285,-640.0,0.000103,2]
[335628295,1724393432294,-9999.99,0.000103,2]
[335628296,1724393432304,-150.99,0.000103,2]
[335628297,1724393432313,-360.0,0.0001032,2]
[335628298,1724393432323,-150.0,0.0001034,2]
[335628299,1724393432332,-172.87,0.00010341,2]
[335628300,1724393432342,-905.03,0.00010341,2]
[335628301,1724393432351,-150.99,0.00010341,2]
[335628302,1724393432360,-499.99,0.00010439,2]
[335628303,1724393432370,-495.94,0.00010439,2]
[335628304,1724393432379,-749.37644773,0.0001044,2]
[335628305,1724393432389,-5168.05,0.0001044,2]
[335628306,1724393432398,-649.86,0.0001044,2]
[335628307,1724393432408,-184.58,0.00010557,2]
[335628308,1724393432417,-160.48,0.00010667,2]
[335628309,1724393432427,-1926.7218,0.00010797,2]
[335628310,1724393432436,-1028.2745,0.00010797,2]
[335628311,1724393432445,-16556.74,0.000108,2]
[335628312,1724393432455,-300.73,0.000108,2]
[335628313,1724393432465,-401.62337545,0.000108,2]
[335628314,1724393432474,-155.96653042,0.000108,2]
[335628315,1724393432485,-408.9014,0.00010877,2]
[335628316,1724393432494,-21769.0,0.00010891,2]
[335628317,1724393432503,-1673.0,0.00010891,2]
[335628318,1724393432511,-963.934,0.00010891,2]
[335628319,1724393432521,-1077.0,0.00010891,2]
[335628320,1724393432530,-1171.4532,0.00010896,2]
[335628321,1724393432539,-213.584,0.00010896,2]
[335628322,1724393432549,-471.9992,0.00010896,2]
[335628323,1724393432561,-1467.6801,0.00010896,2]
[335628324,1724393432570,-264.22,0.00010897,2]
[335628325,1724393432580,-39203.4508,0.00010897,2]
[335628326,1724393432588,-44679.3487,0.00010897,2]
[335628327,1724393432598,-172.814,0.00010897,2]
[335628328,1724393432607,-819.69343737,0.00010897,2]
[335628329,1724393432622,-180.30656263,0.00010897,2]
[335628330,1724393432632,-703.11242062,0.00010897,2]
[335628331,1724393432643,-1568.93547938,0.00010897,2]
[335628332,1724393432652,-332.73530835,0.00010897,2]
[335628333,1724393432662,-332.7353083,0.00010898,2]
[335628334,1724393432670,-172.70431108,0.00010898,2]
[335628335,1724393432679,-1242.05979539,0.00010898,2]
[335628336,1724393432691,-59.18992917,0.00010898,2]
[335628337,1724393432700,-1738.2155576,0.00010898,2]
[335628338,1724393432711,-4776.29766075,0.00010898,2]
[335628339,1724393432722,-334.50747262,0.00010898,2]
[335628340,1724393432733,-650.97930903,0.00010898,2]
[335628341,1724393432742,-27.162628,0.00010898,2]
[335628343,1724393432795,-350.0,0.00010898,2]
[335628345,1724393432806,-522.58091288,0.00010898,2]
[335628346,1724393432817,-684.05072174,0.00010898,2]
[335628348,1724393432827,-332.7353083,0.00010898,2]
[335628349,1724393432836,-332.7353083,0.00010899,2]
[335628350,1724393432845,-912.46340919,0.00010899,2]
[335628351,1724393432854,-912.46340916,0.00010899,2]
[335628352,1724393432864,-912.46340916,0.00010899,2]
[335628353,1724393432873,-583.66983782,0.00010899,2]
[335628354,1724393432884,-328.79357134,0.00010899,2]
[335628355,1724393432893,-912.46340916,0.00010899,2]
[335628356,1724393432902,-912.46340916,0.00010899,2]
[335628357,1724393432911,-912.46340916,0.00010899,2]
[335628358,1724393432920,-912.46340916,0.00010899,2]
[335628359,1724393432929,-912.46340916,0.00010899,2]
[335628360,1724393432939,-205.89445863,0.00010899,2]
[335628361,1724393432948,-1713.71765862,0.000109,2]
[335628362,1724393432959,-3345.67823061,0.000109,2]
[335628363,1724393432970,-859.97083177,0.000109,2]
[335628364,1724393432980,-172.70431108,0.000109,2]
[335628365,1724393432990,-118.79153812,0.000109,2]
[335628366,1724393433001,-594.99826677,0.000109,2]
[335628367,1724393433012,-198.67360427,0.000109,2]
[335628368,1724393433021,-179.29712107,0.000109,2]
[335628369,1724393433030,-179.29712103,0.000109,2]
[335628370,1724393433039,-179.29712103,0.000109,2]
[335628371,1724393433048,-182.605086,0.00010958,2]
[335628372,1724393433058,-159.961665,0.00010958,2]
[335628373,1724393433067,-171.322711,0.00010958,2]
[335628374,1724393433077,-271.56,0.00010959,2]
[335628375,1724393433086,-153.10900538,0.00010986,2]
[335628376,1724393433095,-639.31486952,0.00010986,2]
[335628377,1724393433106,-335.92939992,0.00010986,2]
[335628378,1724393433117,-348.89010204,0.00010986,2]
[335628379,1724393433137,-2993.86562852,0.00010986,2]
[335628380,1724393433147,-821.0,0.00010986,2]
[335628381,1724393433156,-152.31,0.00010987,2]
[335628382,1724393433165,-129.4214838,0.00010989,2]
[335628383,1724393433177,-53.1836022,0.00010989,2]
[335628384,1724393433186,-182.605086,0.00010989,2]
[335628385,1724393433195,-109.7113118,0.00010989,2]
[335628386,1724393433361,1369.68,9.893e-05,2]
[335628396,1724393438194,-2225.56,0.0001044,2]
[335628397,1724393438203,-332.7353083,0.00010899,2]
[335628398,1724393438212,-179.29712103,0.000109,2]
[335628399,1724393438222,-205.89445863,0.000109,2]
[335628400,1724393438231,-72.8937742,0.00010989,2]
[335628401,1724393438242,-159.961665,0.00010989,2]
[335628402,1724393438252,-159.961665,0.00010989,2]
[335628403,1724393438262,-171.322711,0.00010989,2]
[335628404,1724393438271,-171.322711,0.00010989,2]
[335628405,1724393438280,-171.322711,0.00010989,2]
[335628406,1724393438290,-500.0,0.0001099,2]
[335628407,1724393438299,-266.0,0.0001099,2]
[335628408,1724393438309,-171.16151565,0.00010994,2]
[335628409,1724393438319,-443.56635919,0.00010995,2]
[335628410,1724393438331,-148.05364081,0.00010995,2]
[335628411,1724393438341,-2886.36,0.00010995,2]
[335628412,1724393438352,-500.0,0.00010995,2]
[335628413,1724393438361,-500.0,0.00010995,2]
[335628414,1724393438371,-681.56,0.00010995,2]
[335628415,1724393438380,-16363.44840779,0.00010996,2]
[335628416,1724393438390,-500.0,0.00010996,2]
[335628417,1724393438400,-3621.14,0.00010996,2]
[335628418,1724393438409,-676.18,0.00010996,2]
[335628419,1724393438420,-500.0,0.00010996,2]
[335628420,1724393438431,-500.0,0.00010996,2]
[335628421,1724393438440,-500.0,0.00010996,2]
[335628422,1724393438449,-3559.68,0.00010996,2]
[335628423,1724393438458,-500.0,0.00010996,2]
[335628424,1724393438467,-500.0,0.00010996,2]
[335628425,1724393438477,-500.0,0.00010996,2]
[335628426,1724393438490,-3769.59,0.00010996,2]
[335628427,1724393438499,-2235.34,0.00010996,2]
[335628428,1724393438509,-500.0,0.00010996,2]
[335628429,1724393438518,-1945.88,0.00010996,2]
[335628430,1724393438527,-500.0,0.00010996,2]
[335628431,1724393438538,-5156.35,0.00010996,2]
[335628432,1724393438547,-500.0,0.00010996,2]
[335628433,1724393438557,-5873.08,0.00010996,2]
[335628434,1724393438566,-500.0,0.00010996,2]
[335628435,1724393438576,-500.0,0.00010996,2]
[335628436,1724393438586,-5612.69,0.00010996,2]
[335628437,1724393438595,-2117.42,0.00010996,2]
[335628438,1724393438604,-500.0,0.00010996,2]
[335628439,1724393438615,-500.0,0.00010996,2]
[335628440,1724393438625,-402.80887177,0.00010996,2]
[335628441,1724393438634,-500.0,0.00010996,2]
[335628442,1724393438643,-500.0,0.00010996,2]
[335628443,1724393438653,-2938.56,0.00010996,2]
[335628444,1724393438663,-500.0,0.00010996,2]
[335628445,1724393438672,-1214.28,0.00010996,2]
[335628446,1724393438682,-560.01,0.00010996,2]
[335628447,1724393438691,-588.41,0.00010996,2]
[335628448,1724393438701,-500.0,0.00010996,2]
[335628449,1724393438710,-500.0,0.00010996,2]
[335628450,1724393438719,-500.0,0.00010996,2]
[335628451,1724393438729,-500.0,0.00010996,2]
[335628452,1724393438738,-500.0,0.00010996,2]
[335628453,1724393438747,-500.0,0.00010996,2]
[335628454,1724393438757,-500.0,0.00010996,2]
[335628455,1724393438766,-500.0,0.00010996,2]
[335628456,1724393438775,-500.0,0.00010996,2]
[335628457,1724393438785,-501.80667075,0.00010996,2]
[335628458,1724393438794,-502.01448593,0.00010996,2]
[335628459,1724393438804,-710.11,0.00010996,2]
[335628460,1724393438813,-500.0,0.00010996,2]
[335628461,1724393438823,-500.0,0.00010996,2]
[335628462,1724393438832,-501.29547545,0.00010996,2]
[335628463,1724393438842,-500.57987961,0.00010996,2]